bitfinex/quotes_ETHUSD_20240702
["timestamp","ask_amount","ask_price","bid_price","bid_amount"]
[1719963020680,12.26574152,3429.4,3428.2,0.955]
[1719963020681,2.2923,3429.1,3428.2,0.955]
[1719963020893,9.65804982,3429.0,3428.2,0.955]
[1719963021061,0.50531982,3428.9,3428.2,0.955]
[1719963021247,0.50537083,3428.8,3428.2,0.955]
[1719963021448,0.50537083,3428.7,3428.2,0.955]
[1719963021648,0.56895082,3428.7,3428.2,0.955]
[1719963021895,0.50537083,3428.6,3428.2,0.955]
[1719963022207,0.50537083,3428.5,3428.2,0.955]
[1719963022356,0.06353422,3428.6,3428.4,0.955]
[1719963022681,9.15273,3429.0,3428.4,0.955]
[1719963022682,0.50537024,3428.5,3428.4,0.955]
[1719963023082,9.15273,3429.0,3428.4,0.955]
[1719963023271,8.748,3429.0,3428.9,0.955]
[1719963023652,9.25334774,3429.0,3428.9,0.955]
[1719963025165,8.748,3429.0,3428.9,0.955]
[1719963025686,9.25328831,3429.0,3428.9,0.955]
[1719963026396,8.748,3429.0,3428.9,0.955]
[1719963026611,9.2532777,3429.0,3428.9,3.345]
[1719963026911,9.2532777,3429.0,3428.9,3.6795]
[1719963027496,8.748,3429.0,3428.9,3.6795]
[1719963027863,8.8116785,3429.0,3428.9,3.6795]
[1719963028975,8.8116785,3429.0,3428.9,4.2295]
[1719963029174,8.748,3429.0,3428.9,4.2295]
[1719963029562,8.81176759,3429.0,3428.9,4.28781921]
[1719963029975,8.81176759,3429.0,3428.9,7.20419921]
[1719963030298,8.748,3429.0,3428.9,7.20419921]
[1719963030600,8.81176759,3429.0,3428.9,7.20419921]
[1719963033974,8.81176759,3429.0,3428.9,10.06226]
[1719963034487,8.748,3429.0,3428.9,10.06226]
[1719963034682,8.81185643,3429.0,3428.9,10.06226]
[1719963039422,0.06385643,3429.0,3428.9,10.06226]
[1719963039728,2.2868,3430.1,3429.0,2.91621]
[1719963039914,0.50514384,3430.0,3429.1,4.472419]
[1719963040133,0.06393477,3430.0,3429.9,0.955]
[1719963040417,0.56907861,3430.0,3429.9,0.955]
[1719963041631,0.56907342,3430.0,3429.9,0.955]
[1719963042008,0.56907309,3430.0,3429.9,0.955]
[1719963042248,0.06393477,3430.0,3429.9,0.955]
[1719963042411,0.56907367,3430.0,3429.9,0.955]
[1719963042731,0.06393477,3430.0,3429.9,0.955]
[1719963042939,0.56907689,3430.0,3429.9,0.955]
[1719963043107,0.06393477,3430.0,3429.9,0.955]
[1719963046632,0.56908099,3430.0,3429.9,0.955]
[1719963048197,0.06393477,3430.0,3429.9,0.955]
[1719963048735,0.06415808,3430.0,3429.9,0.955]
[1719963048936,2.318,3430.3,3429.9,0.955]
[1719963049237,0.56928943,3430.2,3429.5,0.05830575]
[1719963049424,0.06417465,3430.2,3430.1,0.955]
[1719963049637,0.56928728,3430.2,3430.1,0.955]
[1719963051833,0.56928938,3430.2,3430.1,0.955]
[1719963052705,0.06417465,3430.2,3430.1,0.955]
[1719963053049,0.50507546,3430.4,3430.1,0.955]
[1719963053254,0.50507491,3430.3,3429.8,2.3219]
[1719963053414,0.0642274,3430.3,3430.2,0.955]
[1719963053749,0.50508058,3430.3,3430.2,0.955]
[1719963053953,0.56930798,3430.3,3430.2,0.955]
[1719963054118,0.50508058,3430.3,3430.2,0.955]
[1719963056357,0.56933936,3430.4,3430.3,0.955]
[1719963058150,0.06426775,3430.4,3430.3,0.955]
[1719963058319,1.07442523,3430.4,3430.3,0.955]
[1719963060916,1.07441858,3430.4,3430.3,0.955]
[1719963061345,0.56934649,3430.4,3430.3,0.955]
[1719963061519,1.07441932,3430.4,3430.3,0.955]
[1719963062041,1.07441932,3430.4,3429.8,2.3219]
[1719963062369,0.50507874,3430.4,3430.3,0.955]
[1719963062515,1.01015812,3430.4,3430.3,0.955]
[1719963062720,1.07442587,3430.4,3430.3,0.955]
[1719963064062,1.07442547,3430.4,3430.3,0.955]
[1719963067251,1.07442398,3430.4,3430.3,0.955]
[1719963070423,0.56934649,3430.4,3430.3,0.955]
[1719963070728,1.07442084,3430.4,3430.3,0.955]
[1719963072935,1.07442084,3430.4,3429.8,2.3219]
[1719963073243,0.50507874,3430.4,3430.3,0.955]
[1719963073441,1.0101631,3430.4,3430.3,0.955]
[1719963073762,0.56932008,3430.4,3430.3,0.955]
[1719963074059,1.07439882,3430.4,3430.3,0.955]
[1719963074268,1.07439987,3430.4,3430.3,0.955]
[1719963074873,0.56932113,3430.4,3430.3,0.955]
[1719963080267,0.56932374,3430.4,3430.3,0.955]
[1719963081352,0.06424134,3430.4,3430.3,0.955]
[1719963081570,0.50508171,3430.4,3430.3,0.955]
[1719963081776,0.56930359,3430.4,3430.3,0.955]
[1719963083584,0.56930265,3430.4,3430.3,0.955]
[1719963085846,0.56930265,3430.4,3429.4,2.4817]
[1719963086047,0.06422188,3430.4,3430.3,0.955]
[1719963086350,0.56930139,3430.4,3430.3,0.955]
[1719963086788,0.06422188,3430.4,3430.3,0.955]
[1719963086988,0.56930885,3430.4,3430.3,0.955]
[1719963087184,0.85161974,3430.4,3429.5,0.55]
[1719963087356,0.85161974,3430.4,3430.0,0.955]
[1719963087357,2.93769193,3430.3,3430.0,0.955]
[1719963087691,0.56929724,3430.2,3430.0,0.955]
[1719963087905,0.50509193,3430.1,3430.0,0.955]
[1719963088267,0.56927022,3430.1,3430.0,0.955]
[1719963089972,0.56931223,3430.1,3430.0,0.955]
[1719963093204,0.06417829,3430.1,3430.0,0.955]
[1719963093702,0.50513603,3430.1,3430.0,0.955]
[1719963093905,0.56931432,3430.1,3430.0,0.955]
[1719963096502,0.56931767,3430.1,3430.0,0.955]
[1719963097704,0.56931767,3430.1,3429.0,2.91629]
[1719963097705,2.4626,3430.0,3429.0,2.4984]
[1719963097904,0.50513938,3429.9,3429.8,0.955]
[1719963098114,0.56870341,3429.9,3429.7,0.955]
[1719963098407,0.50513938,3429.8,3429.7,0.955]
[1719963098778,0.56869507,3429.8,3429.7,0.955]
[1719963099705,0.56872633,3429.8,3429.7,0.955]
[1719963100004,0.06355569,3429.8,3429.7,0.955]
[1719963100422,0.50517064,3429.8,3429.7,0.955]
[1719963100587,0.56870113,3429.8,3429.7,0.955]
[1719963101921,0.56870113,3429.8,3429.7,1.01330868]
[1719963102126,0.56870113,3429.8,3429.7,1.34814955]
[1719963102830,0.56866082,3429.8,3429.7,1.34814955]
[1719963103048,1.57892148,3429.8,3429.7,1.34814955]
[1719963103356,1.07379115,3429.8,3429.7,3.71004087]
[1719963103627,1.07379115,3429.8,3429.7,3.3752]
[1719963103985,1.01026066,3429.8,3429.7,3.3752]
[1719963104208,1.07375811,3429.8,3429.7,3.3752]
[1719963104390,1.07375811,3429.8,3429.7,3.71272]
[1719963104591,1.07375811,3429.8,3429.7,2.75772]
[1719963104592,1.01026066,3429.8,3429.7,2.75772]
[1719963104792,1.01026066,3429.8,3429.7,3.71272]
[1719963106312,1.07375811,3429.8,3429.7,3.71272]
[1719963106713,1.07375811,3429.8,3429.7,1.29252]
[1719963116274,0.06349745,3429.8,3429.7,1.29252]
[1719963116566,2.4498,3430.3,3429.2,2.3386]
[1719963116720,2.3391,3430.1,3429.2,2.3386]
[1719963117072,0.56869388,3430.0,3429.6,0.955]
[1719963117225,0.56869388,3430.0,3429.2,2.3386]
[1719963117226,0.50509931,3429.9,3429.8,0.955]
[1719963117672,0.5686856,3429.9,3429.8,0.955]
[1719963118871,0.56873552,3429.9,3429.8,0.955]
[1719963121563,0.56874433,3429.9,3429.8,0.955]
[1719963124973,0.56873979,3429.9,3429.8,0.955]
[1719963125137,0.06358629,3429.9,3429.8,0.955]
[1719963125322,0.5051535,3429.9,3429.8,0.955]
[1719963125880,0.5644635,3429.9,3429.8,0.955]
[1719963127927,0.56446211,3429.9,3429.8,0.955]
[1719963128127,0.56446447,3429.9,3429.8,0.955]
[1719963131131,0.56446731,3429.9,3429.8,0.955]
[1719963134386,0.05931,3429.9,3429.8,0.955]
[1719963134673,0.50516899,3429.9,3429.8,0.955]
[1719963134878,0.50516899,3429.9,3429.5,0.955]
[1719963134879,2.3045,3429.8,3429.5,0.955]
[1719963135036,0.50516899,3429.7,3429.5,0.955]
[1719963135235,0.56437579,3429.7,3429.5,0.955]
[1719963135571,0.50516899,3429.6,3429.5,0.955]
[1719963135783,0.5643675,3429.6,3429.5,0.955]
[1719963137193,0.5643675,3429.6,3429.3,0.955]
[1719963137194,3.13195425,3429.6,3429.3,0.955]
[1719963137365,0.50516899,3429.5,3429.3,0.955]
[1719963137567,0.05909941,3429.4,3429.3,0.955]
[1719963137896,0.50522335,3429.5,3429.3,0.955]
[1719963138062,2.2807,3429.6,3429.3,0.955]
[1719963138063,0.56432132,3429.4,3429.3,0.955]
[1719963140690,0.05909941,3429.4,3429.3,0.955]
[1719963141069,0.50523491,3429.4,3429.3,0.955]
[1719963141387,0.56433432,3429.4,3429.3,0.955]
[1719963141601,0.05909941,3429.4,3429.3,0.955]
[1719963141751,2.2807,3429.6,3429.3,0.955]
[1719963141955,0.0591077,3429.5,3429.3,0.955]
[1719963142777,0.50522666,3429.4,3429.3,0.955]
[1719963142949,0.56432607,3429.4,3429.3,0.955]
[1719963143890,3.12072868,3429.4,3428.2,2.2826]
[1719963144093,3.12072868,3429.4,3428.7,0.955]
[1719963144094,2.2719,3429.3,3428.7,0.955]
[1719963144311,0.50522666,3429.2,3428.7,0.955]
[1719963144486,0.56422583,3429.2,3428.7,0.955]
[1719963144670,0.50522666,3429.1,3428.7,0.955]
[1719963145013,0.05898259,3429.0,3428.9,0.955]
[1719963145190,0.56420925,3429.0,3428.9,0.955]
[1719963145963,0.05898259,3429.0,3428.9,0.955]
[1719963146168,0.50527257,3429.0,3428.9,0.955]
[1719963146380,0.56424578,3429.0,3428.9,0.955]
[1719963147266,0.56424578,3429.0,3428.9,1.30479228]
[1719963147493,0.05897321,3429.0,3428.9,1.30479228]
[1719963147928,2.4388,3429.5,3428.9,1.30479228]
[1719963148077,2.4388,3429.5,3428.8,0.05832277]
[1719963148078,0.05688959,3429.0,3428.8,0.05832277]
[1719963148283,2.4388,3429.5,3428.9,0.955]
[1719963148504,0.50524178,3429.4,3429.3,0.955]
[1719963149210,2.4388,3429.5,3429.3,0.955]
[1719963149408,0.50523457,3429.4,3429.3,0.955]
[1719963152632,0.50524711,3429.4,3429.3,0.955]
[1719963153006,0.50524425,3429.4,3429.3,0.955]
[1719963155804,0.50524673,3429.4,3429.3,0.955]
[1719963159127,0.50524708,3429.4,3429.3,0.955]
[1719963160454,0.50524708,3429.4,3428.7,2.4846]
[1719963160455,0.50524708,3429.4,3429.1,0.955]
[1719963160643,0.50524708,3429.3,3429.1,0.955]
[1719963160948,0.50524708,3429.2,3429.1,0.955]
[1719963161093,0.50524708,3429.4,3429.1,0.955]
[1719963161291,0.50524708,3429.3,3429.1,0.955]
[1719963161638,0.50524708,3429.2,3428.7,2.4846]
[1719963161847,0.50524708,3429.2,3428.3,0.22826]
[1719963161848,0.50524708,3429.4,3429.1,0.955]
[1719963162014,1.10655351,3429.4,3429.1,0.955]
[1719963162217,0.60130643,3429.4,3429.1,0.955]
[1719963162426,0.50525701,3429.3,3429.1,0.955]
[1719963162628,0.50525701,3429.2,3429.1,0.955]
[1719963162800,0.5621958,3429.2,3429.1,0.955]
[1719963164348,0.5621958,3429.2,3428.4,2.2702]
[1719963164498,0.50525701,3429.1,3429.0,0.955]
[1719963164914,0.56215265,3429.1,3429.0,0.955]
[1719963165557,0.56215274,3429.1,3429.0,0.955]
[1719963165899,0.05689564,3429.1,3429.0,0.955]
[1719963166352,0.50525969,3429.2,3429.0,0.955]
[1719963166642,0.56215063,3429.1,3429.0,0.955]
[1719963167850,0.50525969,3429.1,3429.0,0.955]
[1719963168215,0.56215743,3429.1,3429.0,0.955]
[1719963168624,0.56214817,3429.1,3429.0,0.955]
[1719963168970,0.56215216,3429.1,3429.0,0.955]
[1719963171926,0.56215004,3429.1,3429.0,0.955]
[1719963175168,0.05689774,3429.1,3429.0,0.955]
[1719963175339,0.56215025,3429.1,3429.0,0.955]
[1719963176324,0.56214987,3429.1,3429.0,0.955]
[1719963178154,2.85294987,3429.1,3428.3,2.431]
[1719963178486,2.34769774,3429.1,3428.6,0.955]
[1719963178681,0.50528373,3429.0,3428.6,0.955]
[1719963178829,0.50528373,3428.9,3428.6,0.955]
[1719963179026,2.4292,3429.5,3428.8,0.955]
[1719963179270,1.16283577,3429.4,3428.8,0.955]
[1719963179483,0.91991577,3429.3,3428.8,0.955]
[1719963179633,0.50528674,3429.2,3429.0,0.955]
[1719963179985,0.50528674,3429.1,3429.0,0.955]
[1719963181082,2.4936,3429.6,3429.0,3.2075]
[1719963181230,0.50527464,3429.1,3429.0,2.2525]
[1719963181430,0.50527464,3429.1,3429.0,3.2075]
[1719963182061,0.50519768,3429.1,3429.0,3.2075]
[1719963182245,0.50519768,3429.1,3429.0,3.52825]
[1719963182449,0.5051995,3429.1,3429.0,3.52825]
[1719963183251,3.0,3430.0,3429.0,3.52825]
[1719963183598,0.9194409,3429.9,3429.6,0.955]
[1719963183894,0.9194409,3429.8,3429.6,0.955]
[1719963184101,3.0,3430.0,3429.6,0.955]
[1719963184387,0.91947714,3429.9,3429.6,0.955]
[1719963184598,0.91947714,3429.8,3429.6,0.955]
[1719963184751,0.91947714,3429.7,3429.6,0.955]
[1719963185482,0.50520239,3429.7,3429.6,0.955]
[1719963185687,0.50520239,3429.8,3429.6,0.955]
[1719963185865,0.50520239,3429.7,3429.6,0.955]
[1719963186399,0.50520239,3429.8,3429.6,0.955]
[1719963186549,0.50520239,3429.7,3429.6,0.955]
[1719963186749,0.91948953,3429.7,3429.6,0.955]
[1719963187405,0.35723894,3429.8,3429.6,0.955]
[1719963187702,0.50520421,3429.7,3429.6,0.955]
[1719963189892,0.50520421,3429.7,3429.5,0.955]
[1719963190091,2.89710421,3429.6,3429.5,0.955]
[1719963190298,2.89710421,3429.6,3428.4,2.2536]
[1719963190600,2.3919,3429.6,3429.0,0.955]
[1719963190754,0.91972276,3429.5,3429.0,0.955]
[1719963190952,0.05606051,3429.5,3429.2,0.955]
[1719963191152,0.50525377,3429.4,3429.2,0.955]
[1719963191355,0.50525377,3429.3,3429.2,0.955]
[1719963191547,0.56135169,3429.3,3429.2,0.955]
[1719963193393,0.56135169,3429.3,3428.4,2.2536]
[1719963193698,2.3919,3429.6,3428.5,0.517056]
[1719963193699,0.50526147,3429.2,3428.5,0.517056]
[1719963193877,2.99716147,3429.1,3428.5,0.517056]
[1719963194068,2.99716147,3429.1,3428.4,2.2536]
[1719963194069,2.54795026,3429.1,3429.0,0.955]
[1719963194296,2.54795026,3429.1,3428.0,0.61089357]
[1719963194297,3.05321255,3429.1,3428.0,0.61089357]
[1719963194599,3.05321255,3429.1,3427.7,2.4433]
[1719963194600,0.92000041,3429.0,3427.7,2.4433]
[1719963194892,2.54795026,3429.1,3428.4,0.955]
[1719963194893,0.97600588,3428.9,3428.4,0.955]
[1719963195093,0.50526229,3428.8,3428.4,0.955]
[1719963195306,0.56126862,3428.8,3428.4,0.955]
[1719963195492,0.50526229,3428.7,3428.4,0.955]
[1719963195708,0.56126032,3428.7,3428.4,0.955]
[1719963196008,0.50526229,3428.6,3428.4,0.955]
[1719963196392,0.0559723,3428.5,3428.4,0.955]
[1719963196702,0.56123459,3428.5,3428.4,0.955]
[1719963196898,0.56131027,3428.5,3428.4,0.955]
[1719963197775,0.0559723,3428.5,3428.4,0.955]
[1719963198281,0.05573282,3428.5,3428.4,0.955]
[1719963198789,2.4919,3429.1,3428.4,0.955]
[1719963199019,2.4919,3429.1,3427.8,0.59716736]
[1719963199020,0.0557191,3428.5,3427.8,0.59716736]
[1719963199215,2.4919,3429.1,3428.4,0.955]
[1719963199375,2.4919,3429.1,3427.9,0.59579474]
[1719963199376,0.50531958,3429.0,3428.7,0.955]
[1719963199725,0.50531958,3428.9,3428.7,0.955]
[1719963200022,0.50531806,3428.8,3428.7,0.955]
[1719963200171,0.50531812,3428.8,3428.7,0.955]
[1719963200371,0.56107162,3428.8,3428.7,0.955]
[1719963202331,0.56107162,3428.8,3428.5,0.955]
[1719963202492,0.50531812,3428.7,3428.5,0.955]
[1719963202694,0.56105876,3428.7,3428.5,0.955]
[1719963202893,0.50531812,3428.6,3428.5,0.955]
[1719963203159,0.56106524,3428.6,3428.5,0.955]
[1719963203618,0.05573234,3428.6,3428.5,0.955]
[1719963204009,0.50532887,3428.9,3428.5,0.955]
[1719963204205,0.05574902,3428.6,3427.8,2.91732]
[1719963204428,2.4919,3429.1,3428.5,0.955]
[1719963204750,0.50532583,3429.0,3428.7,0.955]
[1719963205049,0.50532583,3428.9,3428.7,0.955]
[1719963205357,0.56110318,3428.8,3428.7,0.955]
[1719963206360,0.05577735,3428.8,3428.7,0.955]
[1719963206512,0.50532246,3429.0,3428.7,0.955]
[1719963206715,0.05532068,3428.8,3428.7,0.955]
[1719963206945,0.50532246,3428.8,3428.7,0.955]
[1719963207127,0.56064314,3428.8,3428.7,0.955]
[1719963209725,0.5606415,3428.8,3428.7,0.955]
[1719963209961,0.5606415,3428.8,3428.2,2.4114]
[1719963210119,0.50532082,3428.7,3428.6,0.955]
[1719963210758,0.50532082,3429.0,3428.6,0.955]
[1719963211143,0.05533812,3428.9,3428.6,0.955]
[1719963211316,0.50532082,3428.8,3428.6,0.955]
[1719963211513,0.56065065,3428.8,3428.6,0.955]
[1719963211746,0.50532082,3428.7,3428.6,0.955]
[1719963212470,0.50532082,3428.7,3428.2,2.4114]
[1719963212643,0.50532082,3429.0,3428.6,0.955]
[1719963212829,2.4919,3429.1,3428.6,0.955]
[1719963213029,0.05533812,3428.9,3428.6,0.955]
[1719963213230,3.00003475,3428.8,3427.9,0.82781]
[1719963213431,0.50533475,3428.7,3428.2,0.955]
[1719963213681,0.56063515,3428.7,3428.2,0.955]
[1719963213967,0.50533475,3428.6,3428.2,0.955]
[1719963214170,0.55876441,3428.6,3428.2,0.955]
[1719963214473,0.50533475,3428.5,3428.4,0.955]
[1719963214848,0.55875611,3428.5,3428.4,0.955]
[1719963216150,0.05342136,3428.5,3428.4,0.955]
[1719963216336,0.50534583,3428.5,3428.4,0.955]
[1719963216536,0.55870167,3428.5,3428.4,0.955]
[1719963216759,0.55870155,3428.5,3428.4,0.955]
[1719963219487,0.55870448,3428.5,3428.4,0.955]
[1719963222573,0.55870448,3428.5,3427.2,5.28076]
[1719963222574,2.3184,3428.4,3427.2,5.28076]
[1719963222738,2.3184,3428.4,3427.2,5.9282975]
[1719963222933,0.5053506,3428.3,3428.1,0.955]
[1719963223138,0.55796652,3428.3,3428.1,0.955]
[1719963223365,0.5053506,3428.2,3428.1,0.955]
[1719963223546,0.55795589,3428.2,3428.1,0.955]
[1719963225872,0.05260529,3428.2,3428.1,0.955]
[1719963226188,0.50540514,3428.2,3428.1,0.955]
[1719963226348,0.05260529,3428.2,3428.1,0.955]
[1719963226544,0.50540514,3428.2,3428.1,0.955]
[1719963226910,0.84039094,3428.2,3427.2,3.0105375]
[1719963227045,2.4601,3428.1,3427.2,3.0105375]
[1719963227244,0.50540514,3428.0,3427.2,3.0105375]
[1719963227474,0.50540514,3428.0,3427.7,0.955]
[1719963227649,0.55794634,3428.0,3427.7,0.955]
[1719963227844,0.50540514,3427.9,3427.7,0.955]
[1719963228068,0.50540514,3427.9,3427.2,3.0105375]
[1719963228069,0.50540514,3427.9,3427.8,0.955]
[1719963228461,0.50540514,3428.0,3427.8,0.955]
[1719963229065,2.4601,3428.1,3427.8,0.955]
[1719963229340,0.50543131,3427.9,3427.2,3.0105375]
[1719963229571,2.4601,3428.1,3427.8,0.955]
[1719963229745,0.50543253,3428.0,3427.8,0.955]
[1719963230054,0.50543253,3427.9,3427.8,0.955]
[1719963232260,2.4601,3428.1,3427.8,0.955]
[1719963232463,2.4601,3428.1,3427.3,0.59284775]
[1719963232464,0.50542783,3428.0,3427.3,0.59284775]
[1719963232663,2.4601,3428.1,3427.4,0.29558478]
[1719963232664,0.50542783,3427.9,3427.4,0.29558478]
[1719963232875,2.4601,3428.1,3427.8,0.955]
[1719963233205,0.50543883,3428.0,3427.8,0.955]
[1719963233353,0.50543883,3427.9,3427.8,0.955]
[1719963235564,0.50543662,3427.9,3427.8,0.955]
[1719963235963,0.50543662,3427.9,3427.2,2.363]
[1719963236169,0.50543662,3427.8,3427.7,0.955]
[1719963236368,2.2689,3427.8,3426.9,2.3565]
[1719963236569,2.2689,3427.8,3427.7,0.955]
[1719963236770,2.77437029,3427.8,3427.7,0.955]
[1719963237854,2.82552258,3427.8,3427.7,0.955]
[1719963238275,3.10807484,3427.8,3426.9,2.3565]
[1719963238466,0.50547029,3427.7,3427.5,0.955]
[1719963238802,0.05100416,3427.6,3427.5,0.955]
[1719963239004,0.05100416,3427.6,3426.9,2.3565]
[1719963239005,0.50547388,3427.6,3426.9,2.3565]
[1719963239309,0.05100416,3427.6,3427.5,0.955]
[1719963239594,0.50547457,3427.7,3427.5,0.955]
[1719963239763,0.55648553,3427.6,3427.5,0.955]
[1719963240093,0.55648553,3427.6,3426.6,2.3756]
[1719963240301,0.55648553,3427.6,3427.5,0.955]
[1719963240302,0.05101096,3427.6,3427.5,0.955]
[1719963240502,0.50550942,3427.6,3427.5,0.955]
[1719963240731,0.55650886,3427.6,3427.5,0.955]
[1719963241358,0.05099944,3427.6,3427.5,0.955]
[1719963241586,0.50550794,3427.7,3427.5,0.955]
[1719963241792,0.05082557,3427.6,3426.8,2.417]
[1719963242099,2.2656,3428.0,3427.5,0.955]
[1719963242395,0.55628586,3427.9,3427.7,0.955]
[1719963242709,0.50546284,3427.8,3427.7,0.955]
[1719963243199,0.55627756,3427.8,3427.7,0.955]
[1719963244606,0.55628178,3427.8,3427.7,0.955]
[1719963244905,0.55628261,3427.8,3427.7,0.955]
[1719963247696,0.55629029,3427.8,3427.7,0.955]
[1719963250883,0.05081472,3427.8,3427.7,0.955]
[1719963251083,0.55630458,3427.8,3427.7,0.955]
[1719963251307,0.55637274,3427.8,3427.7,0.955]
[1719963253100,0.83857001,3427.8,3427.7,0.955]
[1719963254089,0.33308015,3427.8,3427.7,0.955]
[1719963254334,0.83857306,3427.8,3427.7,0.955]
[1719963254533,0.33308015,3427.8,3427.7,0.955]
[1719963254689,0.83857189,3427.8,3427.7,0.955]
[1719963255110,0.83857189,3427.8,3427.0,2.4916]
[1719963255315,0.50549174,3427.7,3427.6,0.955]
[1719963255525,0.55636632,3427.7,3427.6,0.955]
[1719963257448,0.55636786,3427.7,3427.6,0.955]
[1719963257649,2.88656786,3427.7,3427.0,2.4916]
[1719963257828,2.38107458,3427.7,3427.6,0.955]
[1719963258028,2.88656894,3427.7,3427.6,0.955]
[1719963260678,2.38107458,3427.7,3427.6,0.955]
[1719963260953,2.88656831,3427.7,3427.6,0.955]
[1719963264427,2.38107458,3427.7,3427.6,0.955]
[1719963264655,2.88657119,3427.7,3427.6,0.955]
[1719963267330,2.88657803,3427.7,3427.6,0.955]
[1719963269439,2.88657803,3427.7,3427.0,2.4916]
[1719963269646,2.88657803,3427.7,3427.5,0.955]
[1719963269647,0.50550345,3427.6,3427.5,0.955]
[1719963270063,0.55637279,3427.6,3427.5,0.955]
[1719963270358,0.05086934,3427.6,3427.5,0.955]
[1719963270544,0.55638339,3427.6,3427.5,0.955]
[1719963273736,0.55638288,3427.6,3427.5,0.955]
[1719963274327,0.55638745,3427.6,3427.5,0.955]
[1719963274560,0.55638745,3427.6,3426.8,2.7577809]
[1719963274873,0.50551354,3427.5,3427.4,0.955]
[1719963275164,0.55387452,3427.5,3427.4,0.955]
[1719963275364,0.55387452,3427.5,3427.3,0.955]
[1719963275529,0.05019586,3427.5,3427.3,0.955]
[1719963275960,2.3302,3427.7,3427.3,0.955]
[1719963276159,0.28312078,3427.6,3427.3,0.955]
[1719963276869,0.05010078,3427.6,3427.5,0.955]
[1719963277763,2.3302,3427.7,3427.5,0.955]
[1719963278058,0.05006318,3427.6,3427.5,0.955]
[1719963278373,2.3302,3427.7,3427.5,0.955]
[1719963278730,0.05005613,3427.6,3427.5,0.955]
[1719963278925,2.3302,3427.7,3427.5,0.955]
[1719963279235,0.05005613,3427.6,3427.4,0.955]
[1719963279558,2.3302,3427.7,3427.4,0.955]
[1719963279756,0.05006578,3427.6,3427.4,0.955]
[1719963280179,2.3302,3427.7,3427.4,0.955]
[1719963280670,0.05006578,3427.6,3427.4,0.955]
[1719963283184,0.05006578,3427.6,3426.9,0.22517]
[1719963283415,0.05006578,3427.6,3426.4,2.3663]
[1719963283416,2.402,3427.5,3426.4,2.3663]
[1719963283686,2.402,3427.5,3426.8,0.955]
[1719963283843,0.05003744,3427.4,3426.8,0.955]
[1719963284673,2.3114,3427.3,3426.4,2.3663]
[1719963284977,0.04997359,3427.2,3426.9,0.955]
[1719963285275,0.50559544,3427.1,3426.9,0.955]
[1719963285489,0.50559544,3427.0,3426.7,0.955]
[1719963285783,0.50559544,3426.9,3426.7,0.955]
[1719963286003,0.50559544,3426.9,3426.4,2.3663]
[1719963286301,0.50559544,3426.9,3426.4,0.23663]
[1719963286454,2.3114,3427.3,3426.8,0.955]
[1719963286656,0.50560102,3427.2,3426.8,0.955]
[1719963286858,0.50560102,3427.1,3426.8,0.955]
[1719963287088,2.3114,3427.3,3426.8,0.955]
[1719963287089,0.50560102,3427.0,3426.8,0.955]
[1719963287290,0.50560102,3426.9,3426.8,0.955]
[1719963289798,2.3114,3427.3,3426.8,0.955]
[1719963289963,0.50559792,3427.2,3426.8,0.955]
[1719963290159,0.50559777,3427.1,3426.8,0.955]
[1719963290362,0.50559777,3427.0,3426.8,0.955]
[1719963290598,2.3114,3427.3,3426.8,0.955]
[1719963290599,0.50559777,3427.2,3426.8,0.955]
[1719963290766,0.50559777,3427.1,3426.8,0.955]
[1719963290967,0.50559777,3427.2,3426.8,0.955]
[1719963293063,0.50559844,3427.1,3426.8,0.955]
[1719963293265,0.50559844,3427.0,3426.8,0.955]
[1719963293464,0.50559844,3427.2,3426.8,0.955]
[1719963294588,0.50559844,3427.2,3426.9,0.955]
[1719963297273,0.50559713,3427.0,3426.9,0.955]
[1719963297796,0.5552869,3427.0,3426.9,0.955]
[1719963299490,0.55523719,3427.0,3426.9,0.955]
[1719963301939,0.04968977,3427.0,3426.9,0.955]
[1719963302143,0.04968977,3427.0,3426.9,3.58846]
[1719963302311,7.48,3427.6,3426.9,3.2562]
[1719963302502,0.0497368,3427.0,3426.9,2.3012]
[1719963302700,7.48,3427.6,3426.9,3.2562]
[1719963302907,0.0497368,3427.0,3426.9,2.3012]
[1719963303108,7.48,3427.6,3426.9,3.778151]
[1719963303332,0.0497368,3427.0,3426.9,2.3012]
[1719963303511,7.48,3427.6,3426.9,3.2562]
[1719963303729,0.0497368,3427.0,3426.9,2.3012]
[1719963304040,0.0497368,3427.0,3426.9,3.2562]
[1719963304343,7.48,3427.6,3426.9,3.2562]
[1719963304659,0.50551575,3427.5,3426.9,2.3012]
[1719963304943,0.0497783,3427.5,3427.4,0.955]
[1719963305153,0.55529333,3427.5,3427.4,0.955]
[1719963308200,2.3731,3427.4,3426.6,2.3252]
[1719963308440,0.50553313,3427.3,3426.9,0.955]
[1719963308639,0.50553313,3427.3,3426.6,2.3252]
[1719963308640,0.50553313,3427.2,3426.6,2.3252]
[1719963308863,0.50553313,3427.2,3426.3,2.4426]
[1719963309155,0.50553313,3427.2,3425.9,2.91886]
[1719963309156,2.4849,3427.0,3426.4,0.536125]
[1719963309300,2.4849,3427.0,3426.6,0.955]
[1719963309301,0.50553313,3426.9,3426.6,0.955]
[1719963309502,0.55485526,3426.9,3426.6,0.955]
[1719963309701,0.50553313,3426.8,3426.6,0.955]
[1719963310164,0.04930552,3426.7,3426.6,0.955]
[1719963310453,0.50553313,3426.7,3426.6,0.955]
[1719963310650,0.04930552,3426.7,3426.6,0.955]
[1719963310809,0.55483865,3426.7,3426.6,0.955]